fUST/lending_fUST_20240804
["ID","MTS","AMOUNT","RATE_DAILY","PERIOD"]
[334064620,1722717045921,-500.0,0.00013972,2]
[334064621,1722717045932,-1821.61,0.00013972,2]
[334064622,1722717045942,-500.0,0.00013972,2]
[334064623,1722717045952,-500.0,0.00013972,2]
[334064624,1722717045963,-500.0,0.00013972,2]
[334064625,1722717045974,-1428.74,0.00013972,2]
[334064626,1722717045985,-500.0,0.00013972,2]
[334064627,1722717045995,-1007.5,0.00013972,2]
[334064628,1722717046005,-500.0,0.00013972,2]
[334064629,1722717046096,-500.0,0.00013972,2]
[334064630,1722717046106,-661.48,0.00013972,2]
[334064631,1722717046116,-500.0,0.00013972,2]
[334064632,1722717046126,-500.0,0.00013972,2]
[334064633,1722717046135,-500.0,0.00013972,2]
[334064634,1722717046145,-342.0328129,0.00013972,2]
[334064635,1722717046154,-500.0,0.00013972,2]
[334064636,1722717046164,-1741.54,0.00013972,2]
[334064637,1722717046177,-500.0,0.00013972,2]
[334064638,1722717046187,-500.0,0.00013972,2]
[334064639,1722717046196,-1404.85,0.00013972,2]
[334064640,1722717046207,-500.0,0.00013972,2]
[334064641,1722717046220,-500.0,0.00013972,2]
[334064642,1722717046229,-500.0,0.00013972,2]
[334064643,1722717046240,-500.0,0.00013972,2]
[334064644,1722717046252,-519.34,0.00013972,2]
[334064645,1722717046261,-5206.5,0.00013972,2]
[334064646,1722717046271,-500.0,0.00013972,2]
[334064647,1722717046280,-183.69417851,0.00013972,2]
[334064648,1722717046290,-500.0,0.00013972,2]
[334064649,1722717046300,-536.27996975,0.00013972,2]
[334064651,1722717046310,-500.0,0.00013972,2]
[334064653,1722717046319,-500.0,0.00013972,2]
[334064654,1722717046327,-500.0,0.00013972,2]
[334064655,1722717046337,-2183.59,0.00013972,2]
[334064656,1722717046346,-539.67,0.00013972,2]
[334064657,1722717046356,-500.0,0.00013972,2]
[334064659,1722717046365,-500.0,0.00013972,2]
[334064661,1722717046375,-500.0,0.00013972,2]
[334064662,1722717046386,-500.0,0.00013972,2]
[334064663,1722717046396,-500.0,0.00013972,2]
[334064664,1722717046405,-563.21,0.00013972,2]
[334064665,1722717046415,-891.82,0.00013972,2]
[334064667,1722717046425,-203.83474694,0.00013972,2]
[334064668,1722717046434,-500.0,0.00013972,2]
[334064669,1722717046444,-500.0,0.00013972,2]
[334064670,1722717046454,-500.0,0.00013972,2]
[334064671,1722717046463,-500.0,0.00013972,2]
[334064672,1722717046474,-500.0,0.00013972,2]
[334064674,1722717046484,-500.0,0.00013972,2]
[334064675,1722717046493,-500.0,0.00013972,2]
[334064676,1722717046502,-500.0,0.00013972,2]
[334064677,1722717046512,-500.0,0.00013972,2]
[334064678,1722717046522,-500.0,0.00013972,2]
[334064679,1722717046531,-500.0,0.00013972,2]
[334064681,1722717046540,-2910.25,0.00013972,2]
[334064682,1722717046549,-633.02,0.00013972,2]
[334064683,1722717046563,-500.0,0.00013972,2]
[334064684,1722717046572,-1343.25,0.00013972,2]
[334064685,1722717046582,-500.0,0.00013972,2]
[334064686,1722717046591,-500.0,0.00013972,2]
[334064687,1722717046600,-540.65,0.00013972,2]
[334064688,1722717046610,-500.0,0.00013972,2]
[334064689,1722717046620,-586.3,0.00013972,2]
[334064690,1722717046630,-500.0,0.00013972,2]
[334064691,1722717046639,-1523.81,0.00013972,2]
[334064692,1722717046649,-500.0,0.00013972,2]
[334064693,1722717046659,-500.0,0.00013972,2]
[334064694,1722717046668,-500.0,0.00013972,2]
[334064695,1722717046677,-688.77,0.00013972,2]
[334064696,1722717046687,-588.73,0.00013972,2]
[334064697,1722717046696,-500.0,0.00013972,2]
[334064698,1722717046706,-415.20424956,0.00013972,2]
[334064699,1722717046716,-500.0,0.00013972,2]
[334064700,1722717046726,-500.0,0.00013972,2]
[334064701,1722717046734,-586.83749382,0.00013972,2]
[334064702,1722717046743,-200.0,0.00013973,2]
[334064703,1722717046753,-366.11249857,0.00014008,2]
[334064704,1722717046763,-23044.2794858,0.00014136,2]
[334064706,1722717046772,-366.11249857,0.00014145,2]
[334064707,1722717046782,-1557.94937465,0.00014146,2]
[334064708,1722717046791,-23044.2794858,0.00014235,2]
[334064709,1722717046805,-2378.77,0.00014235,2]
[334064710,1722717046814,-151.0,0.00014235,2]
[334064711,1722717046823,-151.0,0.00014235,2]
[334064712,1722717046833,-151.0,0.00014235,2]
[334064713,1722717046843,-151.0,0.00014235,2]
[334064714,1722717046852,-151.0,0.00014235,2]
[334064715,1722717046862,-151.0,0.00014235,2]
[334064716,1722717046871,-1357.31367713,0.00014245,2]
[334064717,1722717046882,-2378.77,0.00014245,2]
[334064718,1722717046891,-2378.77,0.00014245,2]
[334064719,1722717046900,-500.0,0.00014246,2]
[334064720,1722717046910,-500.0,0.00014246,2]
[334064721,1722717046921,-500.0,0.00014246,2]
[334064722,1722717046930,-500.0,0.00014246,2]
[334064723,1722717046939,-500.0,0.00014246,2]
[334064724,1722717046949,-1090.95,0.00014246,2]
[334064725,1722717046958,-500.0,0.00014246,2]
[334064726,1722717046968,-500.0,0.00014246,2]
[334064727,1722717046977,-537.04,0.00014246,2]
[334064728,1722717046986,-500.0,0.00014246,2]
[334064729,1722717046996,-500.0,0.00014246,2]
[334064730,1722717047006,-638.45,0.00014246,2]
[334064731,1722717047015,-500.0,0.00014246,2]
[334064732,1722717047025,-500.0,0.00014246,2]
[334064733,1722717047035,-500.0,0.00014246,2]
[334064734,1722717047044,-500.0,0.00014246,2]
[334064735,1722717047058,-500.0,0.00014246,2]
[334064736,1722717047068,-500.0,0.00014246,2]
[334064737,1722717047077,-1101.11,0.00014246,2]
[334064738,1722717047086,-500.0,0.00014246,2]
[334064739,1722717047096,-500.0,0.00014246,2]
[334064740,1722717047105,-500.0,0.00014246,2]
[334064741,1722717047115,-500.0,0.00014246,2]
[334064742,1722717047124,-647.39,0.00014246,2]
[334064743,1722717047133,-500.0,0.00014246,2]
[334064744,1722717047143,-500.0,0.00014246,2]
[334064745,1722717047152,-500.0,0.00014246,2]
[334064746,1722717047162,-500.0,0.00014246,2]
[334064747,1722717047171,-500.0,0.00014246,2]
[334064748,1722717047183,-960.36,0.00014246,2]
[334064749,1722717047192,-622.02,0.00014246,2]
[334064750,1722717047202,-500.0,0.00014246,2]
[334064751,1722717047211,-500.0,0.00014246,2]
[334064752,1722717047222,-500.0,0.00014246,2]
[334064753,1722717047232,-721.19,0.00014246,2]
[334064754,1722717047241,-500.0,0.00014246,2]
[334064755,1722717047250,-500.0,0.00014246,2]
[334064756,1722717047263,-765.11,0.00014246,2]
[334064757,1722717047273,-500.0,0.00014246,2]
[334064758,1722717047283,-500.0,0.00014246,2]
[334064759,1722717047292,-590.4,0.00014246,2]
[334064760,1722717047305,-500.0,0.00014246,2]
[334064761,1722717047315,-872.38,0.00014246,2]
[334064762,1722717047324,-1699.79,0.00014246,2]
[334064763,1722717047333,-645.26,0.00014246,2]
[334064764,1722717047341,-151.0,0.00014246,2]
[334064765,1722717047351,-151.0,0.00014246,2]
[334064766,1722717047360,-500.0,0.00014246,2]
[334064767,1722717047369,-500.0,0.00014246,2]
[334064768,1722717047379,-151.0,0.00014246,2]
[334064769,1722717047389,-151.0,0.00014246,2]
[334064770,1722717047398,-500.0,0.00014246,2]
[334064771,1722717047408,-500.0,0.00014246,2]
[334064772,1722717047417,-500.0,0.00014246,2]
[334064773,1722717047426,-4273.06,0.00014246,2]
[334064774,1722717047435,-256.68394195,0.00014246,2]
[334064775,1722717047446,-511.58829112,0.00014246,2]
[334064776,1722717047455,-500.0,0.00014246,2]
[334064777,1722717047465,-1821.61,0.00014246,2]
[334064778,1722717047474,-500.0,0.00014246,2]
[334064779,1722717047483,-1428.74,0.00014246,2]
[334064780,1722717047493,-500.0,0.00014246,2]
[334064781,1722717047502,-1007.5,0.00014246,2]
[334064782,1722717047512,-500.0,0.00014246,2]
[334064783,1722717047521,-151.0,0.00014246,2]
[334064784,1722717047531,-661.48,0.00014246,2]
[334064785,1722717047542,-500.0,0.00014246,2]
[334064786,1722717047553,-500.0,0.00014246,2]
[334064787,1722717047562,-500.0,0.00014246,2]
[334064788,1722717047571,-1741.54,0.00014246,2]
[334064789,1722717047581,-1404.85,0.00014246,2]
[334064790,1722717047590,-500.0,0.00014246,2]
[334064791,1722717047599,-500.0,0.00014246,2]
[334064792,1722717047609,-500.0,0.00014246,2]
[334064793,1722717047620,-151.0,0.00014246,2]
[334064794,1722717047630,-519.34,0.00014246,2]
[334064795,1722717047639,-151.0,0.00014246,2]
[334064796,1722717047649,-5206.5,0.00014246,2]
[334064797,1722717047658,-500.0,0.00014246,2]
[334064798,1722717047667,-500.0,0.00014246,2]
[334064799,1722717047676,-2183.59,0.00014246,2]
[334064800,1722717047686,-174.470306,0.00014246,2]
[334064801,1722717047696,-539.67,0.00014246,2]
[334064802,1722717047705,-500.0,0.00014246,2]
[334064803,1722717047715,-500.0,0.00014246,2]
[334064804,1722717047724,-500.0,0.00014246,2]
[334064805,1722717047734,-500.0,0.00014246,2]
[334064806,1722717047743,-500.0,0.00014246,2]
[334064807,1722717047753,-563.21,0.00014246,2]
[334064808,1722717047763,-891.82,0.00014246,2]
[334064809,1722717047772,-500.0,0.00014246,2]
[334064810,1722717047781,-500.0,0.00014246,2]
[334064811,1722717047790,-500.0,0.00014246,2]
[334064812,1722717047799,-500.0,0.00014246,2]
[334064813,1722717047810,-500.0,0.00014246,2]
[334064814,1722717047820,-500.0,0.00014246,2]
[334064815,1722717047830,-500.0,0.00014246,2]
[334064816,1722717047839,-2910.25,0.00014246,2]
[334064817,1722717047848,-633.02,0.00014246,2]
[334064818,1722717047858,-1343.25,0.00014246,2]
[334064819,1722717047867,-500.0,0.00014246,2]
[334064820,1722717047876,-500.0,0.00014246,2]
[334064821,1722717047968,-540.65,0.00014246,2]
[334064822,1722717047978,-500.0,0.00014246,2]
[334064823,1722717047987,-586.3,0.00014246,2]
[334064824,1722717047997,-1523.81,0.00014246,2]
[334064825,1722717048007,-500.0,0.00014246,2]
[334064826,1722717048017,-500.0,0.00014246,2]
[334064827,1722717048027,-688.77,0.00014246,2]
[334064828,1722717048037,-500.0,0.00014246,2]
[334064829,1722717048047,-588.73,0.00014246,2]
[334064830,1722717048059,-500.0,0.00014246,2]
[334064831,1722717048068,-500.0,0.00014246,2]
[334064832,1722717048077,-750.0,0.00014247,2]
[334064833,1722717048086,-2378.77,0.00014509,2]
[334064834,1722717048096,-2378.77,0.00014519,2]
[334064835,1722717048106,-2378.77,0.00014519,2]
[334064836,1722717048116,-23951.87690891,0.0001452,5]
[334064837,1722717048126,-500.0,0.0001452,2]
[334064838,1722717048136,-500.0,0.0001452,2]
[334064839,1722717048146,-151.0,0.0001452,2]
[334064840,1722717048156,-500.0,0.0001452,2]
[334064841,1722717048166,-500.0,0.0001452,2]
[334064842,1722717048180,-470.77734127,0.0001452,2]
[334064843,1722717048190,-1090.95,0.0001452,2]
[334064844,1722717048200,-151.0,0.0001452,2]
[334064845,1722717048210,-500.0,0.0001452,2]
[334064846,1722717048221,-151.0,0.0001452,2]
[334064847,1722717048231,-537.04,0.0001452,2]
[334064848,1722717048241,-500.0,0.0001452,2]
[334064849,1722717048250,-500.0,0.0001452,2]
[334064850,1722717048263,-638.45,0.0001452,2]
[334064851,1722717048273,-500.0,0.0001452,2]
[334064852,1722717048282,-500.0,0.0001452,2]
[334064853,1722717048292,-500.0,0.0001452,2]
[334064854,1722717048305,-500.0,0.0001452,2]
[334064855,1722717048315,-1101.11,0.0001452,2]
[334064856,1722717048326,-500.0,0.0001452,2]
[334064857,1722717048337,-154.698521,0.0001452,2]
[334064858,1722717048346,-151.0,0.0001452,2]
[334064859,1722717048356,-500.0,0.0001452,2]
[334064860,1722717048365,-500.0,0.0001452,2]
[334064861,1722717048374,-647.39,0.0001452,2]
[334064862,1722717048384,-195.870091,0.0001452,2]
[334064863,1722717048394,-195.870091,0.0001452,2]
[334064864,1722717048405,-500.0,0.0001452,2]
[334064865,1722717048414,-500.0,0.0001452,2]
[334064866,1722717048424,-151.355207,0.0001452,2]
[334064867,1722717048434,-960.36,0.0001452,2]
[334064868,1722717048443,-191.703065,0.0001452,2]
[334064869,1722717048453,-622.02,0.0001452,2]
[334064870,1722717048464,-500.0,0.0001452,2]
[334064871,1722717048473,-411.540094,0.0001452,2]
[334064872,1722717048483,-411.540094,0.0001452,2]
[334064873,1722717048494,-500.0,0.0001452,2]
[334064874,1722717048504,-721.19,0.0001452,2]
[334064875,1722717048514,-500.0,0.0001452,2]
[334064876,1722717048524,-500.0,0.0001452,2]
[334064877,1722717048534,-765.11,0.0001452,2]
[334064878,1722717048544,-500.0,0.0001452,2]
[334064879,1722717048559,-500.0,0.0001452,2]
[334064880,1722717048568,-590.4,0.0001452,2]
[334064881,1722717048578,-500.0,0.0001452,2]
[334064882,1722717048588,-872.38,0.0001452,2]
[334064883,1722717048598,-1699.79,0.0001452,2]
[334064884,1722717048607,-500.0,0.0001452,2]
[334064885,1722717048618,-500.0,0.0001452,2]
[334064886,1722717048628,-500.0,0.0001452,2]
[334064887,1722717048639,-4273.06,0.0001452,2]
[334064888,1722717048648,-500.0,0.0001452,2]
[334064889,1722717048658,-1821.61,0.0001452,2]
[334064890,1722717048668,-500.0,0.0001452,2]
[334064891,1722717048678,-689.749873,0.0001452,2]
[334064892,1722717048688,-686.16477581,0.0001452,2]
[334064893,1722717048704,-742.57522419,0.0001452,2]
[334064894,1722717048714,-500.0,0.0001452,2]
[334064895,1722717048723,-689.749873,0.0001452,2]
[334064896,1722717048732,-1007.5,0.0001452,2]
[334064897,1722717048741,-500.0,0.0001452,2]
[334064898,1722717048751,-151.0,0.0001452,2]
[334064899,1722717048761,-500.0,0.0001452,2]
[334064900,1722717048770,-661.48,0.0001452,2]
[334064901,1722717048780,-151.0,0.0001452,2]
[334064902,1722717048790,-286.99440563,0.0001452,2]
[334064903,1722717048799,-1309.70049718,0.0001452,2]
[334064904,1722717048817,-431.83950282,0.0001452,2]
[334064905,1722717048826,-1404.85,0.0001452,2]
[334064906,1722717048834,-500.0,0.0001452,2]
[334064907,1722717048844,-519.34,0.0001452,2]
[334064908,1722717048853,-1243.97049718,0.0001452,2]
[334064911,1722718037128,-818.95982263,9.509e-05,2]
[334064912,1722718037252,-300.0,9.998e-05,2]
[334064913,1722718037275,-300.0,9.998e-05,2]
[334064914,1722718037297,-154.77557542,9.999e-05,2]
[334064915,1722718037320,-694.06857466,9.999e-05,2]
[334064916,1722718037343,-156.77873769,9.999e-05,2]
[334064917,1722718037367,-244.82593148,9.999e-05,2]
[334064918,1722718037391,-523.02359735,9.999e-05,2]
[334064919,1722718037415,-84.94644028,9.999e-05,2]
[334064920,1722718040090,-72.00689307,9.999e-05,2]
[334064921,1722718040111,-779.59941017,9.999e-05,2]
[334064922,1722718040132,-349.22391885,9.999e-05,2]
[334064923,1722718040153,-318.33800551,9.999e-05,2]
[334064924,1722718040173,-413.80608461,9.999e-05,2]
[334064925,1722718040193,-209.79190566,9.999e-05,2]
[334064926,1722718040215,-154.74467129,9.999e-05,2]
[334064927,1722718040235,-412.86050164,0.0001,2]
[334064928,1722718040255,-154.77557542,0.0001,2]
[334064929,1722718040275,-189.1864485,0.00010575,2]
[334064930,1722718040295,-168.768324,0.00010824,2]
[334064931,1722718040318,-148.43067484,0.00010895,2]
[334064932,1722718167120,-1448.2812513,9.899e-05,2]
[334064959,1722718232811,-545.87563572,9.8e-05,2]
[334064992,1722718238602,-303.35400214,9.8e-05,2]
[334064993,1722718238612,-209.85118264,9.999e-05,2]
[334064994,1722718238621,-779.59941017,9.999e-05,2]
[334064995,1722718238631,-236.21706747,9.999e-05,2]
[334064996,1722718238641,-300.0,0.00010679,2]
[334064997,1722718238650,-120.97833758,0.0001068,2]
[334064998,1722718238678,-6555.25839169,0.0001068,2]
[334065058,1722718240901,-580.47988559,0.0001068,2]
[334065065,1722718240958,-11934.6113896,0.0001068,2]
[334065080,1722718241089,-364.15318661,0.0001068,2]
[334065082,1722718241101,-5344.51880893,0.0001068,2]
[334065084,1722718241111,-20.33764916,0.00010895,2]
[334065086,1722718241121,-1260.08963518,0.00010895,2]
[334065088,1722718241130,-332.08,0.00010959,2]
[334065090,1722718241140,-168.768324,0.00010965,2]
[334065092,1722718241149,-168.768324,0.00011036,2]
[334065095,1722718241159,-168.768324,0.00011106,2]
[334065097,1722718241170,-168.768324,0.00011177,2]
[334065099,1722718241181,-168.768324,0.00011247,2]
[334065101,1722718241191,-168.768324,0.00011318,2]
[334065103,1722718241201,-168.768324,0.00011388,2]
[334065105,1722718241211,-242.28642096,0.00011913,2]
[334065107,1722718241220,-561.21472911,0.00011999,2]
[334065109,1722718241231,-166.013464,0.00012986,2]
[334065111,1722718241241,-1872.82,0.00013597,2]
[334065113,1722718241251,-570.53298284,0.00013598,2]
[334065115,1722718241260,-1872.82,0.00013687,2]
[334065117,1722718241270,-1872.82,0.00013687,2]
[334065119,1722718241279,-64411.2917553,0.00013688,2]
[334065121,1722718241289,-1872.82,0.00013697,2]
[334065123,1722718241298,-1872.82,0.00013697,2]
[334065125,1722718241308,-1872.82,0.00013697,2]
[334065142,1722718241317,-500.44866568,0.00013698,2]
[334065145,1722718241472,-500.0,0.00013698,2]
[334065147,1722718241483,-500.0,0.00013698,2]
[334065149,1722718241495,-504.23758031,0.00013698,2]
[334065151,1722718241506,-500.0,0.00013698,2]
[334065153,1722718241517,-331.83517555,0.00013698,2]
[334065155,1722718241526,-507.63589301,0.00013698,2]
[334065157,1722718241535,-500.0,0.00013698,2]
[334065159,1722718241544,-500.0,0.00013698,2]
[334065161,1722718241554,-162.12256688,0.00013698,2]
[334065163,1722718241563,-515.3322998,0.00013698,2]
[334065165,1722718241573,-200.0,0.00013698,2]
[334065168,1722718241586,-500.0,0.00013698,2]
[334065170,1722718241602,-500.0,0.00013698,2]
[334065172,1722718241611,-500.0,0.00013698,2]
[334065174,1722718241621,-500.0,0.00013698,2]
[334065176,1722718241630,-500.0,0.00013698,2]
[334065178,1722718241641,-500.0,0.00013698,2]
[334065180,1722718241650,-500.0,0.00013698,2]
[334065182,1722718241660,-500.0,0.00013698,2]
[334065185,1722718241670,-500.0,0.00013698,2]
[334065187,1722718241682,-500.0,0.00013698,2]
[334065189,1722718241691,-500.0,0.00013698,2]
[334065191,1722718241700,-500.0,0.00013698,2]
[334065193,1722718241710,-500.0,0.00013698,2]
[334065195,1722718241719,-500.0,0.00013698,2]
[334065197,1722718241729,-500.0,0.00013698,2]
[334065199,1722718241739,-500.0,0.00013698,2]
[334065201,1722718241748,-500.0,0.00013698,2]
[334065203,1722718241757,-500.0,0.00013698,2]
[334065205,1722718241766,-503.59309508,0.00013698,2]
[334065207,1722718241776,-500.0,0.00013698,2]
[334065209,1722718241785,-500.0,0.00013698,2]
[334065211,1722718241795,-478.94770609,0.00013698,2]
[334065213,1722718241804,-178.9264899,0.00013698,2]
[334065215,1722718241813,-500.0,0.00013698,2]
[334065217,1722718241822,-505.54303621,0.00013698,2]
[334065219,1722718241832,-500.0,0.00013698,2]
[334065221,1722718241842,-500.0,0.00013698,2]
[334065223,1722718241851,-194.27418549,0.00013698,2]
[334065225,1722718241862,-176.92566855,0.00013698,2]
[334065227,1722718241871,-977.55,0.00013698,2]
[334065229,1722718241881,-500.0,0.00013698,2]
[334065231,1722718241891,-607.13,0.00013698,2]
[334065233,1722718241901,-233.61649993,0.00013698,2]
[334065235,1722718241910,-500.0,0.00013698,2]
[334065237,1722718241920,-500.0,0.00013698,2]
[334065239,1722718241930,-500.0,0.00013698,2]
[334065241,1722718241939,-500.0,0.00013698,2]
[334065243,1722718241948,-500.0,0.00013698,2]
[334065245,1722718241959,-500.0,0.00013698,2]
[334065247,1722718241968,-500.0,0.00013698,2]
[334065249,1722718241978,-500.0,0.00013698,2]
[334065251,1722718241987,-500.0,0.00013698,2]
[334065253,1722718241996,-500.0,0.00013698,2]
[334065255,1722718242005,-500.0,0.00013698,2]
[334065257,1722718242015,-500.41144212,0.00013698,2]
[334065259,1722718242025,-500.0,0.00013698,2]
[334065261,1722718242034,-483.25628062,0.00013698,2]
[334065263,1722718242043,-500.0,0.00013698,2]
[334065265,1722718242053,-500.0,0.00013698,2]
[334065267,1722718242063,-500.0,0.00013698,2]
[334065269,1722718242072,-500.0,0.00013698,2]
[334065271,1722718242082,-500.0,0.00013698,2]
[334065273,1722718242091,-500.0,0.00013698,2]
[334065275,1722718242100,-500.0,0.00013698,2]
[334065277,1722718242110,-500.0,0.00013698,2]
[334065279,1722718242119,-500.0,0.00013698,2]
[334065281,1722718242128,-500.0,0.00013698,2]
[334065283,1722718242138,-500.0,0.00013698,2]
[334065285,1722718242147,-500.0,0.00013698,2]
[334065287,1722718242157,-500.0,0.00013698,2]
[334065289,1722718242167,-500.0,0.00013698,2]
[334065291,1722718242177,-500.0,0.00013698,2]
[334065293,1722718242186,-500.0,0.00013698,2]
[334065295,1722718242195,-500.0,0.00013698,2]
[334065297,1722718242207,-214.67892049,0.00013698,2]
[334065299,1722718242216,-500.0,0.00013698,2]
[334065301,1722718242226,-500.0,0.00013698,2]
[334065303,1722718242236,-500.0,0.00013698,2]
[334065305,1722718242245,-500.0,0.00013698,2]
[334065307,1722718242255,-1036.42,0.00013698,2]
[334065309,1722718242264,-500.0,0.00013698,2]
[334065311,1722718242273,-500.0,0.00013698,2]
[334065313,1722718242282,-500.0,0.00013698,2]
[334065315,1722718242292,-500.0,0.00013698,2]
[334065317,1722718242301,-500.0,0.00013698,2]
[334065319,1722718242311,-498.26237834,0.00013698,2]
[334065321,1722718242320,-500.0,0.00013698,2]
[334065323,1722718242330,-500.0,0.00013698,2]
[334065325,1722718242339,-500.0,0.00013698,2]
[334065327,1722718242348,-500.0,0.00013698,2]
[334065329,1722718242357,-500.0,0.00013698,2]
[334065331,1722718242367,-500.0,0.00013698,2]
[334065333,1722718242376,-503.20124971,0.00013698,2]
[334065335,1722718242386,-500.0,0.00013698,2]
[334065337,1722718242395,-500.0,0.00013698,2]
[334065339,1722718242405,-500.0,0.00013698,2]
[334065341,1722718242414,-500.0,0.00013698,2]
[334065343,1722718242424,-500.0,0.00013698,2]
[334065345,1722718242433,-500.0,0.00013698,2]
[334065347,1722718242443,-500.0,0.00013698,2]
[334065349,1722718242455,-312.51887577,0.00013698,2]
[334065351,1722718242471,-500.0,0.00013698,2]
[334065353,1722718242480,-386.3386317,0.00013698,2]
[334065355,1722718242490,-550.21483176,0.00013698,2]
[334065357,1722718242499,-500.0,0.00013698,2]
[334065359,1722718242508,-340.28223621,0.00013698,2]
[334065361,1722718242517,-500.0,0.00013698,2]
[334065363,1722718242527,-500.0,0.00013698,2]
[334065365,1722718242536,-500.0,0.00013698,2]
[334065367,1722718242546,-500.0,0.00013698,2]
[334065369,1722718242555,-500.0,0.00013698,2]
[334065371,1722718242565,-500.0,0.00013698,2]
[334065373,1722718242574,-500.0,0.00013698,2]
[334065375,1722718242583,-500.0,0.00013698,2]
[334065377,1722718242596,-611.61,0.00013698,2]
[334065379,1722718242605,-500.0,0.00013698,2]
[334065381,1722718242615,-500.0,0.00013698,2]
[334065383,1722718242625,-500.0,0.00013698,2]
[334065385,1722718242635,-500.0,0.00013698,2]
[334065387,1722718242645,-588.15,0.00013698,2]
[334065389,1722718242654,-500.0,0.00013698,2]
[334065391,1722718242665,-500.0,0.00013698,2]
[334065393,1722718242677,-500.0,0.00013698,2]
[334065395,1722718242687,-235.97,0.00013698,2]
[334065397,1722718242696,-877.23,0.00013698,2]
[334065400,1722718242717,-491.10925893,0.00013698,2]
[334065497,1722718243712,-273.37336231,9.9e-05,2]
[334065498,1722718243722,-242.28642096,0.00011913,2]
[334065499,1722718243733,-8.89074107,0.00013698,2]
[334065500,1722718243742,-500.0,0.00013698,2]
[334065501,1722718243752,-500.0,0.00013698,2]
[334065502,1722718243762,-500.0,0.00013698,2]
[334065503,1722718243771,-500.0,0.00013698,2]
[334065504,1722718243781,-500.0,0.00013698,2]
[334065505,1722718243791,-500.0,0.00013698,2]
[334065506,1722718243803,-500.0,0.00013698,2]
[334065507,1722718243813,-501.96834562,0.00013698,2]
[334065508,1722718243823,-500.0,0.00013698,2]
[334065509,1722718243834,-447.93154164,0.00013698,2]
[334065510,1722718243849,-52.06845836,0.00013698,2]
[334065511,1722718243860,-500.0,0.00013698,2]
[334065512,1722718243871,-658.77,0.00013698,2]
[334065513,1722718243881,-500.0,0.00013698,2]
[334065514,1722718243892,-500.0,0.00013698,2]
[334065515,1722718243902,-500.0,0.00013698,2]
[334065516,1722718243913,-500.0,0.00013698,2]
[334065517,1722718243924,-500.0,0.00013698,2]
[334065518,1722718243935,-159.98140171,0.00013698,2]
[334065519,1722718243945,-500.0,0.00013698,2]
[334065520,1722718243955,-500.0,0.00013698,2]
[334065521,1722718243964,-500.0,0.00013698,2]
[334065522,1722718243973,-207.35046671,0.00013698,2]
[334065524,1722718243983,-500.0,0.00013698,2]
[334065526,1722718243992,-304.70497276,0.00013698,2]
[334065528,1722718244004,-195.29502724,0.00013698,2]
[334065530,1722718244013,-500.0,0.00013698,2]
[334065532,1722718244023,-554.22845092,0.00013698,2]
[334065533,1722718244032,-500.0,0.00013698,2]
[334065535,1722718244042,-500.0,0.00013698,2]
[334065537,1722718244052,-500.0,0.00013698,2]
[334065539,1722718244063,-500.0,0.00013698,2]
[334065540,1722718244073,-500.0,0.00013698,2]